bitfinex/quotes_ETHUSD_20251220
["timestamp","ask_amount","ask_price","bid_price","bid_amount"]
[1766208755955,0.44,2991.7,2991.2,0.25682]
[1766208756253,0.44,2991.7,2991.4,2.5718]
[1766208758032,0.002,2991.8,2991.4,1.465]
[1766208758356,0.002,2991.8,2991.5,2.5718]
[1766208762538,0.002,2992.0,2991.6,1.465]
[1766208762740,0.002,2992.3,2991.9,1.1068]
[1766208763054,0.44,2992.2,2992.0,2.5718]
[1766208763260,0.44,2992.2,2992.0,1.1068]
[1766208764048,0.44,2992.2,2991.8,2.5718]
[1766208766963,0.44,2992.2,2991.5,0.001]
[1766208767147,2.6285,2992.1,2991.5,0.001]
[1766208767348,0.44,2992.2,2991.5,1.1078]
[1766208767554,1.5122,2992.0,2991.5,2.5728]
[1766208767956,1.1163,2992.1,2991.6,2.5718]
[1766208768268,2.6285,2992.1,2991.6,2.5718]
[1766208768460,2.6285,2992.1,2991.7,1.36408]
[1766208769251,1.5122,2992.1,2991.7,1.36408]
[1766208769566,1.5122,2992.1,2991.7,2.5718]
[1766208770387,0.002,2992.6,2992.1,1.465]
[1766208770554,0.002,2992.6,2992.4,1.1068]
[1766208771266,0.002,2992.6,2992.3,1.465]
[1766208771267,0.442,2992.8,2992.5,2.5718]
[1766208773175,1.5122,2992.7,2992.1,2.5718]
[1766208773378,2.6285,2992.7,2992.1,2.5718]
[1766208775970,2.6285,2992.7,2992.2,1.1068]
[1766208776281,0.442,2992.8,2992.0,7.16305266]
[1766208776446,0.442,2992.8,2992.3,1.465]
[1766208776646,0.442,2992.8,2992.5,2.5718]
[1766208777843,0.002,2992.7,2992.5,2.5718]
[1766208781361,0.442,2992.8,2992.5,2.5718]
[1766208782378,2.011,2992.7,2992.5,2.5718]
[1766208782682,0.442,2992.8,2992.5,2.5718]
[1766208783856,0.441,2992.8,2992.5,2.5718]
[1766208784486,0.002,2992.9,2992.6,2.7211]
[1766208784672,0.002,2993.0,2992.7,2.7211]
[1766208785352,0.002,2993.0,2992.5,1.81648]
[1766208785554,0.002,2993.0,2992.6,2.7211]
[1766208785986,0.002,2993.0,2992.5,0.25718]
[1766208786283,0.002,2993.0,2992.7,2.7211]
[1766208786467,2.013,2993.4,2992.7,7.16305266]
[1766208786787,0.439,2993.3,2992.9,2.7211]
[1766208787282,0.002,2993.0,2992.9,2.7211]
[1766208791265,0.002,2993.4,2992.8,10.49712204]
[1766208791468,0.002,2993.4,2993.2,2.7211]
[1766208792383,2.622,2993.8,2993.3,2.7211]
[1766208792587,0.441,2993.9,2993.2,7.15578429]
[1766208792797,1.1476,2993.8,2993.4,1.1618]
[1766208793398,2.622,2993.8,2993.4,1.1618]
[1766208793959,0.002,2993.7,2993.4,1.1618]
[1766208794795,0.002,2993.7,2993.4,2.7211]
[1766208796486,2.624,2993.7,2993.1,2.7211]
[1766208796680,0.002,2993.7,2993.3,2.7211]
[1766208797765,0.002,2993.7,2993.1,2.7211]
[1766208798087,0.002,2993.7,2992.9,2.7211]
[1766208798276,1.4744,2993.6,2992.9,3.1601]
[1766208798461,2.622,2993.5,2993.0,2.7211]
[1766208799363,2.624,2993.7,2993.0,1.5593]
[1766208799662,2.624,2993.7,2993.2,2.7211]
[1766208800194,0.002,2993.7,2993.2,2.7211]
[1766208800561,0.002,2993.7,2992.8,10.49710741]
[1766208800562,1.5909,2993.6,2992.8,1.1193]
[1766208800786,2.7418,2993.5,2992.9,2.6613]
[1766208801087,1.1509,2993.4,2992.9,1.1193]
[1766208801287,2.7418,2993.4,2992.9,1.1193]
[1766208801496,2.7438,2993.7,2993.1,1.1193]
[1766208801689,1.1509,2993.6,2992.9,1.981]
[1766208801869,2.7418,2993.6,2993.1,1.1193]
[1766208802393,2.7418,2993.6,2993.1,2.6613]
[1766208804393,0.002,2993.7,2993.0,2.6613]
[1766208804593,0.002,2993.7,2992.9,3.78022935]
[1766208804794,0.002,2993.7,2993.0,10.49690337]
[1766208805000,0.002,2993.7,2993.3,1.542]
[1766208805296,0.002,2993.7,2993.5,2.6613]
[1766208807885,0.002,2993.7,2993.4,1.1193]
[1766208808085,0.002,2993.7,2993.4,2.6613]
[1766208808286,2.7438,2993.7,2993.1,2.6613]
[1766208808602,2.7438,2993.7,2993.2,1.1193]
[1766208808788,2.7438,2993.7,2993.1,0.44]
[1766208808789,0.002,2993.7,2993.1,0.44]
[1766208809190,0.002,2993.7,2993.3,1.1193]
[1766208809390,0.002,2993.7,2993.3,2.6613]
[1766208810975,0.002,2993.7,2993.1,3.1013]
[1766208811182,1.5909,2993.5,2993.1,2.6623]
[1766208811389,1.5909,2993.5,2993.1,3.1013]
[1766208811614,1.1509,2993.6,2993.1,3.1013]
[1766208811803,1.1509,2993.6,2993.2,2.6613]
[1766208812622,0.002,2993.7,2993.2,2.6613]
[1766208812826,0.002,2993.7,2993.3,2.6613]
[1766208812979,0.002,2993.7,2993.3,1.542]
[1766208813316,0.002,2993.7,2993.5,2.6613]
[1766208814280,2.6887,2993.6,2993.1,0.001]
[1766208814478,7.15778429,2993.7,2993.1,0.001]
[1766208814701,7.15578429,2993.5,2992.8,0.439]
[1766208814905,7.15578429,2993.3,2992.7,1.00403454]
[1766208815090,7.15578429,2993.5,2992.6,0.44]
[1766208815290,7.15578429,2993.3,2992.6,0.001]
[1766208815496,2.6887,2993.2,2992.6,0.001]
[1766208815722,7.15578429,2993.3,2992.6,0.001]
[1766208816018,0.71557843,2993.3,2992.6,0.001]
[1766208816594,2.6907,2993.7,2992.7,7.15578429]
[1766208816782,3.1277,2993.6,2992.7,7.15578429]
[1766208816984,2.6887,2993.6,2992.9,7.15578429]
[1766208817181,0.002,2993.7,2993.0,2.6125]
[1766208817398,0.002,2993.7,2993.1,1.1365]
[1766208817601,0.002,2993.7,2993.1,2.6125]
[1766208817805,2.6887,2993.6,2992.8,3.0515]
[1766208818113,2.6887,2993.6,2992.9,2.6125]
[1766208819400,2.6887,2993.6,2992.8,0.439]
[1766208819592,2.6887,2993.6,2992.9,2.6125]
[1766208819814,2.6887,2993.6,2992.9,1.476]
[1766208820313,0.002,2993.7,2992.9,1.476]
[1766208820514,2.6887,2993.6,2992.9,2.6125]
[1766208821920,2.6887,2993.6,2992.8,3.78033563]
[1766208822121,2.6887,2993.6,2993.1,1.476]
[1766208822425,0.002,2993.7,2993.1,1.476]
[1766208822426,0.002,2993.7,2993.1,1.1365]
[1766208822734,0.002,2993.7,2993.2,2.6125]
[1766208822896,0.002,2993.9,2993.2,2.6125]
[1766208823101,0.002,2993.9,2993.3,0.439]
[1766208823405,0.002,2993.9,2993.4,2.6125]
[1766208823724,0.002,2993.7,2993.4,2.6125]
[1766208824713,0.002,2993.7,2993.3,0.439]
[1766208825010,2.6907,2993.7,2993.3,0.439]
[1766208825849,0.002,2993.7,2993.3,0.439]
[1766208826007,0.002,2993.7,2993.3,3.0515]
[1766208827336,0.002,2993.7,2993.4,2.6125]
[1766208828046,0.002,2993.7,2993.3,0.439]
[1766208828245,0.002,2993.7,2993.4,2.6125]
[1766208829806,0.002,2993.7,2993.3,0.439]
[1766208830006,2.6887,2993.6,2993.1,0.439]
[1766208830210,2.6887,2993.6,2993.1,3.0515]
[1766208831833,2.6887,2993.6,2993.1,0.439]
[1766208832039,0.002,2993.7,2992.9,2.6125]
[1766208832210,2.6887,2993.6,2992.6,2.6135]
[1766208832537,5.79234806,2993.7,2992.6,0.44]
[1766208832740,2.6887,2993.6,2992.6,0.001]
[1766208833041,7.15521112,2993.5,2992.6,0.001]
[1766208833338,1.1991,2993.2,2992.6,0.001]
[1766208833536,1.1991,2993.2,2991.9,10.49753034]
[1766208833537,1.1991,2992.6,2992.0,1.00526309]
[1766208833735,2.451,2993.1,2992.0,0.001]
[1766208833736,2.011,2992.9,2992.0,0.001]
[1766208834039,2.6887,2992.6,2992.0,0.001]
[1766208834636,2.6887,2992.6,2992.0,2.6135]
[1766208837338,3.01539086,2993.2,2992.1,2.6125]
[1766208837339,2.011,2993.2,2992.1,2.6125]
[1766208837539,2.6887,2993.0,2992.1,2.6125]
[1766208837839,0.44,2993.1,2992.1,2.6125]
[1766208838010,1.4896,2992.9,2992.1,2.6125]
[1766208838215,2.6887,2992.9,2992.1,2.6125]
[1766208838618,0.2451,2993.0,2992.1,2.6125]
[1766208838811,1.4896,2992.9,2992.1,2.6125]
[1766208839017,1.1991,2992.8,2992.1,2.6125]
[1766208840748,1.4896,2992.9,2992.3,1.1365]
[1766208840945,2.6887,2992.9,2992.3,1.476]
[1766208841194,2.6887,2992.9,2992.0,3.34320124]
[1766208841646,2.6887,2992.9,2992.1,1.476]
[1766208841820,2.6887,2992.9,2992.1,2.6125]
[1766208842338,2.6887,2992.9,2992.0,4.34748787]
[1766208842542,2.6887,2992.9,2992.1,2.6125]
[1766208842720,2.6887,2992.9,2992.0,4.34748787]
[1766208843335,2.6887,2992.9,2992.3,1.476]
[1766208843535,2.6887,2992.9,2992.3,2.87375]
[1766208844220,0.44,2993.1,2992.3,0.70125]
[1766208844424,0.002,2993.3,2992.9,2.6337]
[1766208844946,0.002,2993.3,2992.7,0.44]
[1766208845364,0.002,2993.3,2992.8,2.6337]
[1766208845939,0.002,2993.3,2992.7,0.44]
[1766208845940,2.7325,2993.3,2992.7,0.44]
[1766208846261,2.7305,2993.2,2992.6,0.441]
[1766208846565,2.7305,2993.2,2992.6,3.0747]
[1766208846872,1.1676,2993.1,2992.6,0.001]
[1766208847046,2.7305,2992.9,2992.6,0.001]
[1766208850459,3.78282707,2993.3,2992.7,2.6337]
[1766208850460,2.7325,2993.3,2992.7,2.6337]
[1766208850665,2.7325,2993.3,2992.6,0.001]
[1766208850864,2.7325,2993.3,2992.7,2.6337]
[1766208851364,0.52035,2993.3,2992.7,2.6337]
[1766208851545,2.7305,2993.2,2992.7,2.6337]
[1766208855073,2.011,2993.0,2991.8,5.97613223]
[1766208855366,1.1676,2992.6,2991.8,5.97613223]
[1766208855566,2.7305,2992.6,2991.8,5.97613223]
[1766208855772,2.7305,2992.6,2991.9,2.6337]
[1766208855981,2.7305,2992.6,2992.0,2.6347]
[1766208858293,1.5629,2992.6,2992.0,0.001]
[1766208858450,2.7305,2992.1,2991.6,0.001]
[1766208858850,0.44,2992.3,2991.7,2.6337]
[1766208859244,0.44,2992.3,2991.8,2.6337]
[1766208861290,0.44,2992.3,2991.8,2.6347]
[1766208863979,3.0571,2992.4,2991.8,2.6347]
[1766208864302,3.89806889,2992.4,2991.8,2.6347]
[1766208866008,3.89806889,2992.4,2991.8,0.001]
[1766208866009,3.0571,2992.4,2991.8,0.001]
[1766208866216,2.6171,2992.6,2991.9,2.6345]
[1766208866366,3.0571,2992.6,2991.9,2.6345]
[1766208867293,2.6171,2992.5,2991.9,2.6345]
[1766208867905,2.6171,2992.5,2991.9,1.4633]
[1766208868108,2.6171,2992.5,2991.8,0.001]
[1766208868509,2.6191,2992.5,2991.8,0.001]
[1766208868725,2.6191,2992.5,2991.9,2.6345]
[1766208871613,0.002,2992.5,2991.8,0.001]
[1766208871907,2.6191,2992.5,2991.9,2.6345]
[1766208875811,0.44,2992.4,2991.9,2.6345]
[1766208879006,3.0399,2992.4,2991.9,2.6345]
[1766208881122,2.5999,2992.4,2991.9,2.6345]
[1766208881324,2.5999,2992.3,2991.8,0.001]
[1766208881718,0.44,2992.4,2991.8,0.001]
[1766208881893,2.5999,2992.3,2991.9,0.001]
[1766208882098,1.1195,2992.1,2991.9,0.001]
[1766208882423,2.5999,2992.1,2991.9,0.001]
[1766208884992,2.5999,2992.1,2991.5,2.5954]
[1766208884993,0.44,2992.0,2991.5,0.001]
[1766208885193,2.5999,2991.9,2991.5,0.001]
[1766208888022,0.44,2992.0,2991.5,0.001]
[1766208888526,2.5999,2991.9,2991.5,0.001]
[1766208900515,2.5999,2991.7,2991.1,2.5954]
[1766208900706,1.4804,2991.7,2991.1,2.5954]
[1766208900907,2.5999,2991.6,2991.1,2.5954]
[1766208901336,2.5999,2991.6,2991.2,2.5944]
[1766208901837,0.44,2992.0,2991.2,2.5944]
[1766208902038,1.1195,2991.8,2991.2,2.5944]
[1766208902242,2.5999,2991.8,2991.1,10.50652281]
[1766208902439,2.5999,2991.8,2991.3,2.5944]
[1766208904610,3.0399,2991.8,2991.3,2.5944]
[1766208907448,0.002,2991.9,2991.2,2.6534]
[1766208907623,0.44,2991.8,2991.4,2.6534]
[1766208908013,0.002,2991.9,2991.3,7.16227162]
[1766208908325,0.002,2991.9,2991.7,2.6534]
[1766208908786,0.002,2991.9,2991.3,7.16227162]
[1766208908929,1.5206,2991.9,2991.2,2.6534]
[1766208909130,2.6843,2991.8,2991.2,2.6534]
[1766208909530,2.6843,2991.8,2991.1,10.50647731]
[1766208909933,2.6843,2991.8,2991.3,2.6534]
[1766208911949,0.002,2991.9,2991.2,2.6534]
[1766208912154,0.002,2991.9,2991.4,2.6534]
[1766208912851,0.002,2991.9,2991.3,7.16327162]
[1766208913055,0.002,2991.9,2991.4,2.6534]
[1766208913963,0.002,2991.9,2991.3,7.16327162]
[1766208914124,0.002,2991.9,2991.4,2.6534]
[1766208914324,0.002,2991.9,2991.5,7.16227162]
[1766208914650,0.002,2991.9,2991.7,1.1811]
[1766208915052,0.44,2992.1,2991.6,2.6534]
[1766208915353,0.44,2992.1,2991.9,2.6534]
[1766208915556,0.44,2992.1,2991.6,2.6534]
[1766208915920,0.44,2992.1,2991.5,10.50501161]
[1766208916123,0.44,2992.1,2991.6,2.6534]
[1766208917355,0.44,2992.1,2991.5,10.50501161]
[1766208917652,0.44,2992.1,2991.6,2.6534]
[1766208917955,0.44,2992.1,2991.5,10.50501161]
[1766208918164,0.44,2992.1,2991.6,2.6534]
[1766208918554,0.44,2992.1,2991.5,10.50501161]
[1766208919027,0.44,2992.1,2991.6,2.6534]
[1766208919227,0.44,2992.1,2991.5,7.16227162]
[1766208919546,0.44,2992.3,2992.0,2.6534]
[1766208920229,3.1243,2992.4,2991.7,7.16227162]
[1766208920425,3.1243,2992.4,2991.9,1.1494]
[1766208920629,3.1243,2992.4,2991.9,2.67]
[1766208922952,0.44,2992.4,2991.7,10.50483205]
[1766208923157,0.44,2992.4,2991.9,1.1494]
[1766208923456,0.44,2992.4,2992.0,2.67]
[1766208925256,0.44,2992.4,2991.9,7.49144986]
[1766208925257,0.002,2992.5,2991.9,7.49144986]
[1766208925428,0.442,2992.5,2992.0,2.67]
[1766208925762,0.442,2992.5,2991.9,7.49144986]
[1766208925952,0.442,2992.5,2992.0,2.67]
[1766208927145,0.002,2992.4,2992.0,2.67]
[1766208927333,0.002,2992.4,2992.1,2.67]
[1766208927664,0.002,2992.5,2992.2,1.5206]
[1766208927864,0.002,2992.5,2992.2,2.67]
[1766208928568,0.002,2992.5,2992.0,2.67]
[1766208928569,2.6107,2992.5,2992.0,2.67]
[1766208928864,1.1355,2992.3,2991.9,0.33216023]
[1766208929033,2.6087,2992.3,2991.9,0.33216023]
[1766208929236,2.6087,2992.3,2991.9,3.00216023]
[1766208929539,0.002,2992.5,2991.9,0.33216023]
[1766208930047,2.6087,2992.3,2991.9,0.33216023]
[1766208931139,2.6087,2992.4,2991.9,0.33216023]
[1766208931465,2.6087,2992.2,2991.5,1.5206]
[1766208931763,2.6087,2992.1,2991.6,2.67]
[1766208932129,3.0487,2992.2,2991.5,2.67]
[1766208932334,2.6087,2992.1,2991.5,2.67]
[1766208932567,2.6087,2992.1,2991.6,1.1494]
[1766208932869,2.6087,2992.1,2991.6,2.67]
[1766208934137,0.002,2992.5,2992.1,1.1494]
[1766208934336,2.7778,2993.0,2992.4,8.35898963]
[1766208934548,3.2178,2993.0,2992.4,9.94338963]
[1766208934741,1.6087,2992.9,2992.4,9.94338963]
[1766208934932,2.7778,2992.9,2992.4,9.94338963]
[1766208935150,2.7778,2992.9,2992.4,2.7841]
[1766208935687,1.6087,2992.4,2991.9,0.44]
[1766208935855,1.6087,2992.4,2991.9,1.6397]
[1766208936060,1.6087,2992.4,2991.9,3.2241]
[1766208936660,1.6087,2992.4,2992.0,1.1997]
[1766208936988,1.1691,2992.5,2992.0,1.1997]
[1766208937185,1.1691,2992.5,2992.0,1.5844]
[1766208937357,1.1691,2992.5,2992.0,2.7841]
[1766208938686,1.1691,2992.5,2992.0,1.5844]
[1766208938889,1.6087,2992.6,2992.1,2.7841]
[1766208941088,2.7778,2992.6,2992.1,2.7841]
[1766208943597,2.7798,2992.6,2992.1,2.7841]
[1766208943800,1.6107,2992.6,2992.2,1.1997]
[1766208944093,0.002,2992.6,2992.2,2.7841]
[1766208945050,0.002,2993.1,2992.4,1.5844]
[1766208945051,1.64082552,2993.1,2992.4,1.5844]
[1766208945256,0.48209255,2993.0,2992.5,2.7841]
[1766208945691,2.7778,2993.0,2992.5,2.7841]
[1766208947086,2.7778,2993.0,2992.3,0.44]
[1766208947389,0.03212552,2993.1,2992.3,0.44]
[1766208947593,1.6087,2993.0,2992.3,0.44]
[1766208947796,1.6087,2992.8,2992.3,0.44]
[1766208947963,1.6087,2992.7,2992.3,0.44]
[1766208948159,0.44,2992.9,2992.0,0.001]
[1766208948474,1.6087,2992.4,2992.0,0.001]
[1766208948694,2.7778,2992.4,2992.0,0.001]
[1766208953000,1.1691,2992.4,2992.0,0.001]
[1766208953202,2.7778,2992.3,2992.0,0.001]
[1766208955579,2.7778,2992.3,2991.8,2.7841]
[1766208955580,1.6087,2992.0,2991.4,4.92724782]
[1766208955776,1.6087,2992.0,2991.5,2.7841]
[1766208958408,1.6087,2992.0,2991.4,0.44]
[1766208958606,2.7778,2991.8,2991.4,0.44]
[1766208959176,2.7778,2991.8,2991.3,0.001]
[1766208960680,2.7778,2991.8,2991.5,0.001]
[1766208961611,2.7778,2991.8,2991.2,4.64922967]
[1766208963025,2.7778,2991.8,2991.2,3.34312967]
[1766208963606,2.7778,2991.8,2991.3,2.7841]
[1766208964285,2.7778,2991.8,2991.4,1.608]
[1766208966711,0.44,2992.1,2991.4,6.09220676]
[1766208966712,2.5921,2992.0,2991.4,6.09220676]
[1766208966903,2.5921,2992.0,2991.4,4.95090676]
[1766208967087,2.5921,2992.0,2991.4,2.7493]
[1766208968114,1.451,2992.0,2991.4,2.7493]
[1766208968320,2.5921,2991.9,2991.4,2.7493]
[1766208969215,2.5921,2991.9,2991.4,2.7503]
[1766208971130,2.5921,2991.9,2991.4,1.1423]
[1766208971418,2.5921,2992.1,2991.5,2.7493]
[1766208971620,1.1411,2992.0,2991.5,2.7493]
[1766208971914,2.5921,2992.0,2991.5,2.7493]
[1766208972119,2.5921,2992.0,2991.5,1.608]
[1766208972421,1.451,2992.0,2991.4,0.001]
[1766208972605,2.5921,2991.9,2991.4,0.001]
[1766208973112,1.451,2991.8,2991.4,0.001]
[1766208973285,2.5921,2991.8,2991.4,0.001]
[1766208973489,0.30993226,2991.9,2991.4,0.001]
[1766208973789,2.5921,2991.8,2991.4,0.001]
[1766208973988,0.30993226,2991.9,2991.4,0.001]
[1766208974219,1.1411,2991.7,2991.4,0.001]
[1766208974421,2.5921,2991.7,2991.4,0.001]
[1766208974592,2.88230323,2991.7,2991.4,0.001]
[1766208976417,2.5921,2991.7,2991.4,0.001]
[1766208976708,1.1411,2991.7,2991.4,0.001]
[1766208976914,2.90203226,2991.9,2991.4,0.001]
[1766208978526,0.002,2991.8,2991.4,0.001]
[1766208980197,1.156,2991.8,2991.4,0.001]
[1766208980526,3.11209323,2991.8,2991.4,0.001]
[1766208985428,2.761,2991.8,2991.4,0.001]
[1766208986828,2.761,2991.8,2991.4,1.4881]
[1766208987137,0.002,2991.8,2991.4,2.6064]
[1766208989208,0.002,2991.8,2991.4,3.61104649]
[1766208991425,0.002,2991.8,2991.5,2.6054]
[1766208992133,13.070731,2992.4,2991.4,2.49274649]
[1766208992334,2.759,2992.3,2991.7,2.6054]
[1766208992534,1.605,2992.3,2991.7,2.6054]
[1766208992740,2.759,2992.2,2991.7,2.6054]
[1766208993029,3.2799,2992.2,2991.7,2.6054]
[1766208993440,3.2799,2992.2,2991.7,3.60991865]
[1766208995621,2.01,2992.4,2991.8,2.6752]
[1766208995821,2.01,2992.4,2991.9,1.5345]
[1766208996026,4.7438,2992.4,2991.9,1.5345]
[1766208996339,2.7338,2992.3,2991.8,1.1407]
[1766208997040,2.7338,2992.3,2991.8,2.6752]
[1766208998637,3.1462,2992.4,2991.8,2.6752]
[1766208998936,4.7438,2992.4,2991.8,2.6752]
[1766208999426,2.01,2992.5,2991.8,1.5345]
[1766208999632,4.7438,2992.5,2991.9,2.6752]
[1766208999835,4.7438,2992.4,2991.9,2.6752]
[1766209000034,2.01,2992.4,2991.7,1.00451865]
[1766209000236,1.5976,2992.1,2991.7,1.00451865]
[1766209000540,2.01,2992.4,2991.7,1.00451865]
[1766209000541,2.7338,2992.0,2991.7,1.00451865]
[1766209001542,1.1362,2992.2,2991.5,0.44]
[1766209001715,1.5976,2991.8,2991.5,0.44]
[1766209001915,1.5976,2991.8,2991.4,1.44552875]
[1766209002115,1.5976,2991.8,2991.4,0.441]
[1766209002343,1.5976,2991.8,2991.4,2.58622875]
[1766209003144,1.1362,2991.9,2991.4,4.12072875]
[1766209003716,2.7338,2991.9,2991.4,4.12072875]
[1766209008628,2.7338,2991.9,2991.4,10.14247476]
[1766209008822,2.7338,2991.9,2991.5,1.1407]
[1766209011156,2.7338,2991.9,2991.5,1.1417]
[1766209012659,1.5976,2992.1,2991.5,1.1417]
[1766209012860,2.7338,2992.1,2991.5,2.6762]
[1766209013558,1.5976,2992.0,2991.5,2.6762]
[1766209013941,2.7338,2992.0,2991.5,2.6762]
[1766209014256,0.002,2992.2,2991.5,1.1417]
[1766209014461,0.33439356,2992.1,2991.5,0.001]
[1766209014658,1.5976,2991.8,2991.5,0.001]
[1766209018365,1.1362,2991.9,2991.5,0.001]
[1766209018567,2.7338,2991.9,2991.5,0.001]
[1766209019964,2.7338,2991.9,2991.5,1.1417]
[1766209020465,0.002,2992.2,2991.7,2.6752]
[1766209020639,0.002,2991.9,2991.7,2.6752]
[1766209021045,0.002,2991.9,2991.7,1.1407]
[1766209021245,0.002,2991.9,2991.5,9.83864601]
[1766209021737,0.002,2991.9,2991.6,1.1407]
[1766209021939,0.002,2991.9,2991.6,2.6752]
[1766209025771,1.00453547,2992.5,2991.8,14.32489202]
[1766209025970,0.002,2992.6,2991.7,0.03342581]
[1766209025971,0.002,2992.6,2992.3,8.38124601]
[1766209026265,0.002,2992.6,2992.3,2.7734]
[1766209026446,0.002,2992.6,2992.4,1.00432025]
[1766209026847,0.002,2992.6,2992.4,2.22312025]
[1766209027637,0.002,2992.6,2992.4,1.00432025]
[1766209027838,1.4843,2992.3,2991.9,0.44]
[1766209028070,2.6518,2992.3,2991.9,0.44]
[1766209028551,2.6518,2992.3,2991.9,0.882]
[1766209028957,2.6518,2992.3,2991.9,0.44]
[1766209029559,0.442,2992.6,2992.0,2.7734]
[1766209029560,3.0938,2992.6,2992.0,2.7734]
[1766209031271,2.6518,2992.5,2992.0,2.7734]
[1766209033171,0.002,2992.6,2992.1,7.16244601]
[1766209033347,0.002,2992.6,2992.3,9.93584601]
[1766209034053,0.002,2992.6,2992.3,2.7734]
[1766209034976,2.6538,2992.6,2992.0,2.7734]
[1766209035172,2.6518,2992.5,2991.9,8.60683014]
[1766209035344,1.4843,2992.5,2991.9,1.44438413]
[1766209035550,1.1675,2992.4,2991.9,2.99898413]
[1766209035856,1.1675,2992.4,2991.9,4.21778413]
[1766209036069,2.6518,2992.4,2991.9,4.21778413]
[1766209037578,2.6518,2992.4,2992.0,2.7734]
[1766209037973,0.002,2992.5,2992.0,2.7734]
[1766209038167,2.6538,2992.5,2992.0,2.7734]
[1766209039677,2.6538,2992.5,2992.0,9.93584601]
[1766209039978,0.002,2992.5,2992.2,9.93584601]
[1766209042162,0.002,2992.5,2992.2,8.38124601]
[1766209042361,0.002,2992.5,2992.2,9.85364601]
[1766209042970,0.002,2992.5,2992.0,9.79514601]
[1766209045483,1.2109,2992.3,2991.8,7.16244601]
[1766209045782,2.8061,2992.2,2991.9,0.44]
[1766209048459,1.2109,2992.2,2991.9,0.44]
[1766209049158,2.8061,2992.4,2991.9,3.0727]
[1766209049568,2.8061,2992.4,2991.9,10.23514601]
[1766209051888,2.8061,2992.4,2991.9,7.60244601]
[1766209052093,0.002,2992.5,2992.0,2.6327]
[1766209052888,0.002,2992.5,2991.9,10.94579447]
[1766209053093,0.002,2992.5,2992.1,1.1603]
[1766209053292,0.002,2992.5,2992.1,2.6327]
[1766209057493,2.012,2992.5,2992.1,2.6327]
[1766209057700,0.002,2992.5,2992.1,2.6327]
[1766209057876,0.002,2992.5,2991.9,0.441]
[1766209058406,0.20641255,2992.5,2991.9,0.441]
[1766209058716,0.20641255,2992.5,2991.9,0.001]
[1766209058996,0.23653807,2992.5,2991.9,0.001]
[1766209059182,2.6838,2992.3,2991.9,0.001]
[1766209059381,2.45,2992.4,2991.9,0.001]
[1766209059703,2.6838,2992.2,2991.9,0.001]
[1766209062305,0.26865381,2992.3,2991.5,3.1477]
[1766209062502,2.6838,2992.1,2991.5,0.441]
[1766209062671,2.6838,2992.1,2991.6,2.7067]
[1766209063607,1.1881,2991.9,2991.5,0.441]
[1766209063806,2.6838,2991.8,2991.5,0.441]
[1766209068188,2.30877933,2992.3,2991.5,0.441]
[1766209068397,2.6838,2992.0,2991.5,3.1477]
[1766209068584,1.4957,2992.1,2991.5,3.1477]
[1766209068899,2.6838,2992.0,2991.5,3.1477]
[1766209074919,1.4957,2992.0,2991.5,0.001]
[1766209075101,0.44,2991.9,2991.5,0.001]
[1766209075295,2.6838,2991.8,2991.5,0.001]
[1766209076911,0.71813807,2991.9,2991.5,0.001]
[1766209077112,1.4957,2991.6,2991.3,0.001]
[1766209077287,2.6838,2991.5,2991.3,0.001]
[1766209078092,0.47012552,2991.4,2991.0,2.7077]
[1766209078288,0.47012552,2991.4,2991.0,0.001]
[1766209078289,0.78551807,2991.4,2991.0,0.001]
[1766209078495,1.1881,2991.0,2990.7,0.001]
[1766209078689,2.6838,2990.9,2990.7,0.001]
[1766209082225,0.44,2991.0,2990.5,0.001]
[1766209082522,0.03012552,2990.9,2990.4,0.13498786]
[1766209082822,2.6838,2990.8,2990.4,0.001]
[1766209083223,2.6838,2990.8,2990.4,0.13598786]
[1766209083740,0.44,2990.7,2990.4,0.13598786]
[1766209084929,2.7075,2991.1,2990.4,0.13598786]
[1766209085132,0.91476255,2991.0,2990.4,0.13598786]
[1766209085335,0.91476255,2991.0,2990.6,2.7635]
[1766209085804,0.94488807,2991.0,2990.6,2.7635]
[1766209086010,3.65238807,2991.0,2990.4,2.89948786]
[1766209086316,3.65238807,2991.0,2990.5,0.001]
[1766209086633,2.7075,2990.9,2990.5,0.001]
[1766209087235,0.03012552,2990.8,2990.5,0.001]
[1766209089418,0.44,2990.7,2990.5,0.001]
[1766209091741,0.03012552,2990.8,2990.5,0.001]
[1766209091915,2.7075,2990.5,2990.3,0.001]
[1766209092309,0.47012552,2990.6,2990.3,0.13698786]
[1766209093619,0.47012552,2990.6,2990.5,0.001]
[1766209095945,0.44,2990.6,2990.5,0.001]
[1766209098128,0.44,2990.6,2990.5,2.7645]
[1766209098314,0.44,2990.6,2990.5,0.001]
[1766209100938,0.44,2990.9,2990.5,0.001]
[1766209101139,0.002,2991.0,2990.7,2.7966]
[1766209107224,0.03012552,2990.9,2990.6,1.00489888]